fUST/lending_fUST_20241003
["ID","MTS","AMOUNT","RATE_DAILY","PERIOD"]
[339764929,1727965852155,-687.92,0.00013698,2]
[339764930,1727965852165,-938.42,0.00013698,2]
[339764931,1727965852174,-674.78,0.00013698,2]
[339764932,1727965852184,-500.0,0.00013698,2]
[339764933,1727965852194,-500.0,0.00013698,2]
[339764934,1727965852204,-500.0,0.00013698,2]
[339764935,1727965852214,-718.49,0.00013698,2]
[339764936,1727965852224,-500.0,0.00013698,2]
[339764937,1727965852234,-500.0,0.00013698,2]
[339764938,1727965852244,-500.0,0.00013698,2]
[339764939,1727965852254,-500.0,0.00013698,2]
[339764940,1727965852265,-500.0,0.00013698,2]
[339764941,1727965852275,-500.0,0.00013698,2]
[339764942,1727965852285,-565.98,0.00013698,2]
[339764943,1727965852295,-567.52,0.00013698,2]
[339764944,1727965852309,-500.92516392,0.00013698,2]
[339764945,1727965852319,-500.0,0.00013698,2]
[339764946,1727965852334,-527.76,0.00013698,2]
[339764947,1727965852343,-500.0,0.00013698,2]
[339764948,1727965852353,-500.0,0.00013698,2]
[339764949,1727965852362,-500.0,0.00013698,2]
[339764950,1727965852372,-500.0,0.00013698,2]
[339764951,1727965852382,-550.76,0.00013698,2]
[339764952,1727965852391,-500.0,0.00013698,2]
[339764953,1727965852400,-500.0,0.00013698,2]
[339764954,1727965852410,-500.0,0.00013698,2]
[339764955,1727965852420,-500.0,0.00013698,2]
[339764956,1727965852581,-500.0,0.00013698,2]
[339764957,1727965852590,-609.03,0.00013698,2]
[339764958,1727965852600,-500.0,0.00013698,2]
[339764959,1727965852609,-500.0,0.00013698,2]
[339764960,1727965852618,-500.0,0.00013698,2]
[339764961,1727965852629,-500.0,0.00013698,2]
[339764962,1727965852639,-500.0,0.00013698,2]
[339764963,1727965852649,-642.31807613,0.00013698,2]
[339764964,1727965852659,-500.0,0.00013698,2]
[339764965,1727965852668,-500.0,0.00013698,2]
[339764966,1727965852679,-500.0,0.00013698,2]
[339764967,1727965852689,-500.0,0.00013698,2]
[339764968,1727965852698,-500.0,0.00013698,2]
[339764969,1727965852709,-500.0,0.00013698,2]
[339764970,1727965852720,-507.56,0.00013698,2]
[339764971,1727965852729,-500.0,0.00013698,2]
[339764972,1727965852738,-500.0,0.00013698,2]
[339764973,1727965852747,-500.0,0.00013698,2]
[339764974,1727965852756,-500.0,0.00013698,2]
[339764975,1727965852766,-500.0,0.00013698,2]
[339764976,1727965852775,-500.0,0.00013698,2]
[339764977,1727965852785,-315.48079155,0.00013698,2]
[339764978,1727965852794,-505.45833164,0.00013698,2]
[339764979,1727965852804,-500.0,0.00013698,2]
[339764980,1727965852813,-651.29,0.00013698,2]
[339764981,1727965852823,-769.95,0.00013698,2]
[339764982,1727965852837,-2644.88,0.00013698,7]
[339764983,1727965852846,-500.0,0.00013698,2]
[339764984,1727965852855,-505.24088308,0.00013698,2]
[339764985,1727965852864,-500.0,0.00013698,2]
[339764986,1727965852873,-500.0,0.00013698,2]
[339764987,1727965852882,-172.648712,0.00013698,2]
[339764988,1727965852892,-500.0,0.00013698,2]
[339764989,1727965852901,-500.0,0.00013698,2]
[339764990,1727965852911,-172.648712,0.00013698,2]
[339764991,1727965852921,-570.7,0.00013698,2]
[339764992,1727965852930,-608.77413444,0.00013698,2]
[339764993,1727965852940,-500.0,0.00013698,2]
[339764994,1727965852949,-172.648712,0.00013698,2]
[339764995,1727965852959,-172.648712,0.00013698,2]
[339764996,1727965852969,-500.0,0.00013698,2]
[339764997,1727965852979,-500.0,0.00013698,2]
[339764998,1727965852989,-500.0,0.00013698,2]
[339764999,1727965852999,-503.55244473,0.00013698,2]
[339765000,1727965853008,-500.0,0.00013698,2]
[339765001,1727965853018,-500.0,0.00013698,2]
[339765002,1727965853028,-774.3,0.00013698,2]
[339765003,1727965853038,-500.0,0.00013698,2]
[339765004,1727965853047,-500.0,0.00013698,2]
[339765005,1727965853056,-500.0,0.00013698,2]
[339765006,1727965853065,-822.67,0.00013698,2]
[339765007,1727965853077,-500.0,0.00013698,2]
[339765008,1727965853086,-500.0,0.00013698,2]
[339765009,1727965853096,-501.87325652,0.00013698,2]
[339765010,1727965853105,-682.27,0.00013698,2]
[339765011,1727965853115,-500.0,0.00013698,2]
[339765012,1727965853124,-500.0,0.00013698,2]
[339765013,1727965853135,-500.0,0.00013698,2]
[339765014,1727965853144,-502.68,0.00013698,2]
[339765015,1727965853154,-500.0,0.00013698,2]
[339765016,1727965853163,-500.0,0.00013698,2]
[339765017,1727965853172,-500.74152661,0.00013698,2]
[339765018,1727965853182,-500.0,0.00013698,2]
[339765019,1727965853192,-500.0,0.00013698,2]
[339765020,1727965853201,-500.0,0.00013698,2]
[339765021,1727965853210,-500.0,0.00013698,2]
[339765022,1727965853219,-500.0,0.00013698,2]
[339765023,1727965853229,-500.0,0.00013698,2]
[339765024,1727965853240,-500.0,0.00013698,2]
[339765025,1727965853249,-500.0,0.00013698,2]
[339765026,1727965853260,-500.0,0.00013698,2]
[339765027,1727965853270,-500.0,0.00013698,2]
[339765028,1727965853279,-500.0,0.00013698,2]
[339765029,1727965853289,-500.0,0.00013698,2]
[339765030,1727965853300,-500.0,0.00013698,2]
[339765031,1727965853312,-604.64,0.00013698,2]
[339765032,1727965853323,-500.0,0.00013698,2]
[339765033,1727965853336,-500.0,0.00013698,2]
[339765034,1727965853347,-500.0,0.00013698,2]
[339765035,1727965853357,-500.0,0.00013698,2]
[339765036,1727965853367,-500.0,0.00013698,2]
[339765037,1727965853381,-500.0,0.00013698,2]
[339765038,1727965853392,-501.61339725,0.00013698,2]
[339765039,1727965853401,-528.58,0.00013698,2]
[339765040,1727965853411,-500.0,0.00013698,2]
[339765041,1727965853421,-705.45,0.00013698,2]
[339765042,1727965853431,-500.0,0.00013698,2]
[339765043,1727965853441,-500.0,0.00013698,2]
[339765044,1727965853451,-500.0,0.00013698,2]
[339765045,1727965853461,-524.64,0.00013698,2]
[339765046,1727965853471,-501.34296562,0.00013698,2]
[339765047,1727965853480,-907.57,0.00013698,2]
[339765048,1727965853490,-500.0,0.00013698,2]
[339765049,1727965853499,-500.14237512,0.00013698,2]
[339765050,1727965853510,-500.0,0.00013698,2]
[339765051,1727965853519,-503.44326185,0.00013698,2]
[339765052,1727965853529,-500.0,0.00013698,2]
[339765053,1727965853538,-500.0,0.00013698,2]
[339765054,1727965853548,-500.0,0.00013698,2]
[339765055,1727965853557,-138.88714761,0.00013698,2]
[339765056,1727965853615,-361.11285239,0.00013698,2]
[339765057,1727965853627,-258.61503087,0.00013698,2]
[339765058,1727965853638,-241.38496913,0.00013698,2]
[339765059,1727965853648,-500.0,0.00013698,2]
[339765060,1727965853657,-550.03660707,0.00013698,2]
[339765061,1727965853666,-500.0,0.00013698,2]
[339765062,1727965853676,-604.98,0.00013698,2]
[339765063,1727965853685,-1026.49,0.00013698,2]
[339765064,1727965853694,-748.27,0.00013698,2]
[339765065,1727965853705,-500.0,0.00013698,2]
[339765066,1727965853715,-85.42358491,0.00013698,2]
[339765067,1727965853731,-414.57641509,0.00013698,2]
[339765068,1727965853740,-500.0,0.00013698,2]
[339765069,1727965853749,-500.0,0.00013698,2]
[339765070,1727965853759,-405.73473779,0.00013698,2]
[339765071,1727965853768,-500.0,0.00013698,2]
[339765072,1727965853778,-500.0,0.00013698,2]
[339765073,1727965853787,-756.34,0.00013698,2]
[339765074,1727965853796,-646.58,0.00013698,2]
[339765075,1727965853806,-500.0,0.00013698,2]
[339765076,1727965853815,-500.0,0.00013698,2]
[339765077,1727965853828,-891.47,0.00013698,2]
[339765078,1727965853837,-500.0,0.00013698,2]
[339765079,1727965853846,-500.0,0.00013698,2]
[339765080,1727965853855,-500.0,0.00013698,2]
[339765081,1727965853864,-500.0,0.00013698,2]
[339765082,1727965853874,-515.16611628,0.00013698,2]
[339765083,1727965853883,-500.0,0.00013698,2]
[339765084,1727965853892,-500.0,0.00013698,2]
[339765085,1727965853902,-500.0,0.00013698,2]
[339765086,1727965853911,-500.0,0.00013698,2]
[339765087,1727965853920,-726.65,0.00013698,2]
[339765088,1727965853930,-500.0,0.00013698,2]
[339765089,1727965853939,-570.09,0.00013698,2]
[339765090,1727965853950,-151.0,0.00013698,2]
[339765091,1727965853960,-151.0,0.00013698,2]
[339765092,1727965853970,-151.0,0.00013698,2]
[339765093,1727965853980,-151.0,0.00013698,2]
[339765094,1727965853991,-500.0,0.00013698,2]
[339765095,1727965854000,-555.9,0.00013698,2]
[339765096,1727965854011,-500.0,0.00013698,2]
[339765097,1727965854021,-500.0,0.00013698,2]
[339765098,1727965854031,-151.0,0.00013698,2]
[339765099,1727965854040,-151.0,0.00013698,2]
[339765100,1727965854050,-500.91953704,0.00013698,2]
[339765101,1727965854059,-151.0,0.00013698,2]
[339765102,1727965854069,-151.0,0.00013698,2]
[339765103,1727965854082,-500.0,0.00013698,2]
[339765104,1727965854091,-500.0,0.00013698,2]
[339765105,1727965854101,-500.0,0.00013698,2]
[339765106,1727965854111,-500.0,0.00013698,2]
[339765107,1727965854120,-500.0,0.00013698,2]
[339765108,1727965854130,-500.0,0.00013698,2]
[339765109,1727965854139,-631.03137144,0.00013698,2]
[339765110,1727965854150,-500.0,0.00013698,2]
[339765111,1727965854160,-500.0,0.00013698,2]
[339765112,1727965854170,-802.82,0.00013698,2]
[339765113,1727965854179,-500.0,0.00013698,2]
[339765114,1727965854188,-637.05,0.00013698,2]
[339765115,1727965854199,-638.55,0.00013698,2]
[339765116,1727965854209,-500.75886572,0.00013698,2]
[339765117,1727965854219,-500.0,0.00013698,2]
[339765118,1727965854228,-276.75764162,0.00013698,2]
[339765119,1727965854238,-500.0,0.00013698,2]
[339765120,1727965854248,-500.0,0.00013698,2]
[339765121,1727965854257,-500.0,0.00013698,2]
[339765122,1727965854268,-151.0,0.00013698,2]
[339765123,1727965854277,-151.0,0.00013698,2]
[339765124,1727965854287,-151.0,0.00013698,2]
[339765125,1727965854301,-500.0,0.00013698,2]
[339765126,1727965854311,-151.0,0.00013698,2]
[339765127,1727965854321,-500.0,0.00013698,2]
[339765128,1727965854334,-500.0,0.00013698,2]
[339765129,1727965854345,-500.0,0.00013698,2]
[339765130,1727965854354,-500.0,0.00013698,2]
[339765131,1727965854364,-151.0,0.00013698,2]
[339765132,1727965854374,-500.0,0.00013698,2]
[339765133,1727965854385,-151.0,0.00013698,2]
[339765134,1727965854395,-183.57604,0.00013698,2]
[339765135,1727965854404,-1108.13,0.00013698,2]
[339765136,1727965854414,-1299.09,0.00013698,2]
[339765137,1727965854423,-500.0,0.00013698,2]
[339765138,1727965854432,-500.0,0.00013698,2]
[339765139,1727965854442,-500.0,0.00013698,2]
[339765140,1727965854452,-500.0,0.00013698,2]
[339765141,1727965854461,-500.0,0.00013698,2]
[339765142,1727965854471,-674.16,0.00013698,2]
[339765143,1727965854480,-500.0,0.00013698,2]
[339765144,1727965854490,-500.0,0.00013698,2]
[339765145,1727965854500,-500.0,0.00013698,2]
[339765146,1727965854509,-500.0,0.00013698,2]
[339765147,1727965854519,-501.5227972,0.00013698,2]
[339765148,1727965854528,-500.0,0.00013698,2]
[339765149,1727965854537,-500.0,0.00013698,2]
[339765150,1727965854546,-500.0,0.00013698,2]
[339765151,1727965854556,-501.21667364,0.00013698,2]
[339765152,1727965854565,-511.61882318,0.00013698,2]
[339765153,1727965854574,-500.0,0.00013698,2]
[339765154,1727965854587,-151.0,0.00013698,2]
[339765155,1727965854596,-1519.74,0.00013698,2]
[339765156,1727965854605,-151.0,0.00013698,2]
[339765157,1727965854614,-540.46793923,0.00013698,2]
[339765158,1727965854623,-151.0,0.00013698,2]
[339765159,1727965854632,-151.0,0.00013698,2]
[339765160,1727965854641,-500.0,0.00013698,2]
[339765161,1727965854651,-500.0,0.00013698,2]
[339765162,1727965854659,-631.98,0.00013698,2]
[339765163,1727965854669,-502.83562869,0.00013698,2]
[339765164,1727965854680,-209.09086508,0.00013698,2]
[339765165,1727965854690,-500.16006235,0.00013698,2]
[339765166,1727965854701,-500.0,0.00013698,2]
[339765167,1727965854713,-500.0,0.00013698,2]
[339765168,1727965854723,-500.0,0.00013698,2]
[339765169,1727965854735,-500.0,0.00013698,2]
[339765170,1727965854744,-586.89498287,0.00013698,2]
[339765171,1727965854755,-500.0,0.00013698,2]
[339765172,1727965854765,-500.0,0.00013698,2]
[339765173,1727965854775,-750.33,0.00013698,2]
[339765174,1727965854784,-500.0,0.00013698,2]
[339765175,1727965854794,-500.0,0.00013698,2]
[339765176,1727965854805,-500.0,0.00013698,2]
[339765177,1727965854815,-500.0,0.00013698,2]
[339765178,1727965854825,-500.0,0.00013698,2]
[339765179,1727965854846,-500.0,0.00013698,2]
[339765180,1727965854856,-500.0,0.00013698,2]
[339765181,1727965854865,-500.0,0.00013698,2]
[339765182,1727965854875,-640.07,0.00013698,2]
[339765183,1727965854884,-500.0,0.00013698,2]
[339765184,1727965854897,-500.0,0.00013698,2]
[339765185,1727965854906,-500.0,0.00013698,2]
[339765186,1727965854916,-501.00887923,0.00013698,2]
[339765187,1727965854928,-500.0,0.00013698,2]
[339765188,1727965855065,-500.0,0.00013698,2]
[339765189,1727965855080,-500.0,0.00013698,2]
[339765190,1727965855089,-500.0,0.00013698,2]
[339765191,1727965855099,-151.0,0.00013698,2]
[339765192,1727965855108,-518.59,0.00013698,2]
[339765193,1727965855117,-540.27,0.00013698,2]
[339765194,1727965855127,-500.0,0.00013698,2]
[339765195,1727965855138,-500.0,0.00013698,2]
[339765196,1727965855149,-1112.07,0.00013698,2]
[339765197,1727965855159,-1112.19,0.00013698,2]
[339765198,1727965855172,-500.91033364,0.00013698,2]
[339765199,1727965855182,-500.0,0.00013698,2]
[339765200,1727965855191,-500.0,0.00013698,2]
[339765201,1727965855201,-151.0,0.00013698,2]
[339765202,1727965855212,-151.0,0.00013698,2]
[339765203,1727965855221,-1571.38,0.00013698,2]
[339765204,1727965855230,-317.438495,0.00013698,2]
[339765205,1727965855239,-151.0,0.00013698,2]
[339765206,1727965855249,-317.438495,0.00013698,2]
[339765207,1727965855260,-151.0,0.00013698,2]
[339765208,1727965855270,-500.0,0.00013698,2]
[339765209,1727965855279,-317.438495,0.00013698,2]
[339765210,1727965855290,-317.438495,0.00013698,2]
[339765211,1727965855301,-500.0,0.00013698,2]
[339765212,1727965855312,-771.44,0.00013698,2]
[339765213,1727965855322,-151.0,0.00013698,2]
[339765214,1727965855335,-504.13853399,0.00013698,2]
[339765215,1727965855345,-151.0,0.00013698,2]
[339765216,1727965855356,-317.438495,0.00013698,2]
[339765217,1727965855366,-317.438495,0.00013698,2]
[339765218,1727965855375,-317.438495,0.00013698,2]
[339765219,1727965855388,-317.438495,0.00013698,2]
[339765220,1727965855398,-500.36659977,0.00013698,2]
[339765221,1727965855407,-500.0,0.00013698,2]
[339765222,1727965855416,-635.98798192,0.00013698,2]
[339765223,1727965855426,-571.83,0.00013698,2]
[339765224,1727965855435,-703.18,0.00013698,2]
[339765225,1727965855445,-500.0,0.00013698,2]
[339765226,1727965855454,-500.0,0.00013698,2]
[339765227,1727965855464,-500.0,0.00013698,2]
[339765228,1727965855473,-500.71661722,0.00013698,2]
[339765229,1727965855483,-500.0,0.00013698,2]
[339765230,1727965855493,-518.90226377,0.00013698,2]
[339765231,1727965855502,-500.0,0.00013698,2]
[339765232,1727965855511,-151.0,0.00013698,2]
[339765233,1727965855522,-151.0,0.00013698,2]
[339765234,1727965855532,-151.0,0.00013698,2]
[339765235,1727965855541,-500.0,0.00013698,2]
[339765236,1727965855550,-500.0,0.00013698,2]
[339765237,1727965855559,-151.0,0.00013698,2]
[339765238,1727965855569,-500.45372874,0.00013698,2]
[339765239,1727965855579,-500.0,0.00013698,2]
[339765240,1727965855589,-500.0,0.00013698,2]
[339765241,1727965855599,-500.07731565,0.00013698,2]
[339765242,1727965855608,-507.44855973,0.00013698,2]
[339765243,1727965855618,-500.0,0.00013698,2]
[339765244,1727965855628,-151.0,0.00013698,2]
[339765245,1727965855638,-687.9,0.00013698,2]
[339765246,1727965855647,-500.0,0.00013698,2]
[339765247,1727965855657,-151.0,0.00013698,2]
[339765248,1727965855666,-501.16025032,0.00013698,2]
[339765249,1727965855676,-151.0,0.00013698,2]
[339765250,1727965855685,-151.0,0.00013698,2]
[339765251,1727965855694,-500.0,0.00013698,2]
[339765252,1727965855703,-619.42,0.00013698,2]
[339765253,1727965855712,-151.0,0.00013698,2]
[339765254,1727965855721,-151.0,0.00013698,2]
[339765255,1727965855730,-151.0,0.00013698,2]
[339765256,1727965855739,-151.0,0.00013698,2]
[339765257,1727965855748,-500.0,0.00013698,2]
[339765258,1727965855757,-151.0,0.00013698,2]
[339765259,1727965855767,-151.0,0.00013698,2]
[339765260,1727965855776,-151.0,0.00013698,2]
[339765261,1727965855785,-1352.53,0.00013698,2]
[339765262,1727965855794,-151.0,0.00013698,2]
[339765263,1727965855803,-500.0,0.00013698,2]
[339765264,1727965855812,-500.0,0.00013698,2]
[339765265,1727965855821,-500.0,0.00013698,2]
[339765266,1727965855831,-500.0,0.00013698,2]
[339765267,1727965855841,-543.08,0.00013698,2]
[339765268,1727965855851,-500.0,0.00013698,2]
[339765269,1727965855860,-726.27,0.00013698,2]
[339765270,1727965855870,-500.0,0.00013698,2]
[339765271,1727965855880,-500.0,0.00013698,2]
[339765272,1727965855891,-500.19134765,0.00013698,2]
[339765273,1727965855902,-500.0,0.00013698,2]
[339765274,1727965855912,-500.0,0.00013698,2]
[339765275,1727965855922,-729.16,0.00013698,2]
[339765276,1727965855934,-500.0,0.00013698,2]
[339765277,1727965855943,-500.0,0.00013698,2]
[339765278,1727965855954,-500.0,0.00013698,2]
[339765279,1727965855964,-500.0,0.00013698,2]
[339765280,1727965855974,-500.0,0.00013698,2]
[339765281,1727965855987,-500.0,0.00013698,2]
[339765282,1727965855999,-1099.09,0.00013698,2]
[339765283,1727965856009,-151.0,0.00013698,2]
[339765284,1727965856019,-151.0,0.00013698,2]
[339765285,1727965856029,-500.0,0.00013698,2]
[339765286,1727965856039,-207.753724,0.00013698,2]
[339765287,1727965856049,-500.0,0.00013698,2]
[339765288,1727965856058,-329.01169591,0.00013698,2]
[339765289,1727965856069,-500.0,0.00013698,2]
[339765290,1727965856083,-151.0,0.00013698,2]
[339765291,1727965856092,-151.0,0.00013698,2]
[339765292,1727965856101,-151.0,0.00013698,2]
[339765293,1727965856110,-151.0,0.00013698,2]
[339765294,1727965856119,-500.0,0.00013698,2]
[339765295,1727965856128,-539.01654651,0.00013698,2]
[339765296,1727965856137,-500.0,0.00013698,2]
[339765297,1727965856148,-515.42377405,0.00013698,2]
[339765298,1727965856158,-500.0,0.00013698,2]
[339765299,1727965856167,-930.12,0.00013698,2]
[339765300,1727965856176,-500.0,0.00013698,2]
[339765301,1727965856185,-500.0,0.00013698,2]
[339765302,1727965856194,-1025.51,0.00013698,2]
[339765303,1727965856204,-151.0,0.00013698,2]
[339765304,1727965856213,-151.0,0.00013698,2]
[339765305,1727965856222,-500.0,0.00013698,2]
[339765306,1727965856232,-151.0,0.00013698,2]
[339765307,1727965856242,-151.0,0.00013698,2]
[339765308,1727965856251,-151.0,0.00013698,2]
[339765309,1727965856260,-754.32,0.00013698,2]
[339765310,1727965856270,-151.0,0.00013698,2]
[339765311,1727965856279,-151.0,0.00013698,2]
[339765312,1727965856289,-151.0,0.00013698,2]
[339765313,1727965856299,-151.0,0.00013698,2]
[339765314,1727965856311,-979.49,0.00013698,2]
[339765315,1727965856321,-500.0,0.00013698,2]
[339765316,1727965856334,-500.0,0.00013698,2]
[339765317,1727965856343,-500.0,0.00013698,2]
[339765318,1727965856352,-500.0,0.00013698,2]
[339765319,1727965856361,-604.76614755,0.00013698,2]
[339765320,1727965856371,-585.2,0.00013698,2]
[339765321,1727965856382,-500.0,0.00013698,2]
[339765322,1727965856392,-500.65490051,0.00013698,2]
[339765323,1727965856401,-500.0,0.00013698,2]
[339765324,1727965856411,-500.0,0.00013698,2]
[339765325,1727965856421,-151.0,0.00013698,2]
[339765326,1727965856430,-2364.76,0.00013698,2]
[339765327,1727965856439,-151.0,0.00013698,2]
[339765328,1727965856448,-151.0,0.00013698,2]
[339765329,1727965856457,-500.0,0.00013698,2]
[339765330,1727965856467,-500.0,0.00013698,2]
[339765331,1727965856476,-500.0,0.00013698,2]
[339765332,1727965856485,-500.0,0.00013698,2]
[339765333,1727965856494,-1155.08,0.00013698,2]
[339765334,1727965856503,-500.0,0.00013698,2]
[339765335,1727965856513,-500.0,0.00013698,2]
[339765336,1727965856522,-500.0,0.00013698,2]
[339765337,1727965856532,-832.03,0.00013698,2]
[339765338,1727965856541,-500.0,0.00013698,2]
[339765339,1727965856550,-500.0,0.00013698,2]
[339765340,1727965856559,-500.0,0.00013698,2]
[339765341,1727965856569,-500.0,0.00013698,2]
[339765342,1727965856582,-500.0,0.00013698,2]
[339765343,1727965856591,-584.56589757,0.00013698,2]
[339765344,1727965856600,-500.0,0.00013698,2]
[339765345,1727965856610,-500.0,0.00013698,2]
[339765346,1727965856619,-500.0,0.00013698,2]
[339765347,1727965856629,-527.94478923,0.00013698,2]
[339765348,1727965856638,-151.0,0.00013698,2]
[339765349,1727965856648,-500.0,0.00013698,2]
[339765350,1727965856658,-610.44,0.00013698,2]
[339765351,1727965856668,-500.44387226,0.00013698,2]
[339765352,1727965856677,-500.0,0.00013698,2]
[339765353,1727965856686,-702.51,0.00013698,2]
[339765354,1727965856695,-500.0,0.00013698,2]
[339765355,1727965856704,-500.0,0.00013698,2]
[339765356,1727965856713,-258.808904,0.00013698,2]
[339765357,1727965856722,-258.808904,0.00013698,2]
[339765358,1727965856731,-500.0,0.00013698,2]
[339765359,1727965856740,-258.808904,0.00013698,2]
[339765360,1727965856749,-2303.58,0.00013698,2]
[339765361,1727965856760,-258.808904,0.00013698,2]
[339765362,1727965856771,-672.57,0.00013698,2]
[339765363,1727965856780,-500.0,0.00013698,2]
[339765364,1727965856790,-258.808904,0.00013698,2]
[339765365,1727965856800,-258.808904,0.00013698,2]
[339765366,1727965856811,-512.76500707,0.00013698,2]
[339765367,1727965856824,-500.0,0.00013698,2]
[339765368,1727965856837,-258.808904,0.00013698,2]
[339765369,1727965856848,-258.808904,0.00013698,2]
[339765370,1727965856858,-500.0,0.00013698,2]
[339765371,1727965856868,-500.0,0.00013698,2]
[339765372,1727965856879,-500.0,0.00013698,2]
[339765373,1727965856888,-500.0,0.00013698,2]
[339765374,1727965856897,-503.45,0.00013698,2]
[339765375,1727965856907,-500.0,0.00013698,2]
[339765376,1727965856916,-500.0,0.00013698,2]
[339765377,1727965856925,-723.02,0.00013698,2]
[339765378,1727965856935,-500.0,0.00013698,2]
[339765379,1727965856943,-500.0,0.00013698,2]
[339765380,1727965856953,-500.0,0.00013698,2]
[339765381,1727965856962,-500.0,0.00013698,2]
[339765382,1727965856972,-500.0,0.00013698,2]
[339765383,1727965856981,-708.41,0.00013698,2]
[339765384,1727965856991,-500.98266916,0.00013698,2]
[339765385,1727965857000,-500.0,0.00013698,2]
[339765386,1727965857009,-500.0,0.00013698,2]
[339765387,1727965857018,-500.0,0.00013698,2]
[339765388,1727965857027,-705.68,0.00013698,2]
[339765389,1727965857036,-500.0,0.00013698,2]
[339765390,1727965857046,-500.0,0.00013698,2]
[339765391,1727965857055,-568.03,0.00013698,2]
[339765392,1727965857065,-500.55936233,0.00013698,2]
[339765393,1727965857075,-500.0,0.00013698,2]
[339765394,1727965857088,-500.0,0.00013698,2]
[339765395,1727965857098,-617.97,0.00013698,2]
[339765396,1727965857107,-500.0,0.00013698,2]
[339765397,1727965857116,-500.0,0.00013698,2]
[339765398,1727965857125,-500.0,0.00013698,2]
[339765399,1727965857134,-523.02,0.00013698,2]
[339765400,1727965857143,-500.0,0.00013698,2]
[339765401,1727965857153,-500.0,0.00013698,2]
[339765402,1727965857163,-700.27,0.00013698,2]
[339765403,1727965857287,-151.0,0.00013698,2]
[339765404,1727965857298,-688.1,0.00013698,2]
[339765405,1727965857311,-151.0,0.00013698,2]
[339765406,1727965857321,-500.0,0.00013698,2]
[339765407,1727965857334,-151.0,0.00013698,2]
[339765408,1727965857344,-151.0,0.00013698,2]
[339765409,1727965857353,-500.0,0.00013698,2]
[339765410,1727965857362,-500.0,0.00013698,2]
[339765411,1727965857371,-500.0,0.00013698,2]
[339765412,1727965857382,-584.87,0.00013698,2]
[339765413,1727965857391,-500.0,0.00013698,2]
[339765414,1727965857401,-514.09377697,0.00013698,2]
[339765415,1727965857410,-1130.1,0.00013698,2]
[339765416,1727965857420,-500.0,0.00013698,2]
[339765417,1727965857430,-151.0,0.00013698,2]
[339765418,1727965857439,-151.0,0.00013698,2]
[339765419,1727965857448,-181.480058,0.00013698,2]
[339765420,1727965857457,-500.0,0.00013698,2]
[339765421,1727965857466,-500.0,0.00013698,2]
[339765422,1727965857476,-500.0,0.00013698,2]
[339765423,1727965857486,-2235.31,0.00013698,2]
[339765424,1727965857495,-500.0,0.00013698,2]
[339765425,1727965857505,-634.73,0.00013698,2]
[339765426,1727965857515,-500.0,0.00013698,2]
[339765427,1727965857525,-619.5,0.00013698,2]
[339765428,1727965857535,-1192.01,0.00013698,2]